bitfinex-derivatives/quotes_BTCF0:USTF0_20220102
["timestamp","ask_amount","ask_price","bid_price","bid_amount"]
[1641152181230,0.35678598,46942.0,46941.0,1.13440034]
[1641152181433,0.35678598,46943.0,46941.0,3.13571724]
[1641152181632,0.35678598,46943.0,46942.0,0.181]
[1641152181830,0.35678598,46943.0,46942.0,0.19310534]
[1641152182031,0.35678598,46943.0,46942.0,0.53395588]
[1641152182235,0.78645921,46946.0,46942.0,0.53395588]
[1641152182432,0.78645921,46946.0,46945.0,0.32133567]
[1641152182631,1.29680968,46952.0,46945.0,0.32133567]
[1641152182632,0.78645921,46947.0,46945.0,0.32133567]
[1641152182834,0.78645921,46947.0,46946.0,0.001]
[1641152183033,0.78645921,46947.0,46946.0,0.01310534]
[1641152183233,0.78645921,46947.0,46946.0,0.33094234]
[1641152183434,1.18193805,46949.0,46946.0,0.33094234]
[1641152183633,1.18193805,46949.0,46948.0,0.181]
[1641152183833,1.18193805,46953.0,46948.0,0.181]
[1641152184033,1.18193805,46953.0,46949.0,0.801]
[1641152184234,1.18193805,46953.0,46949.0,0.88263]
[1641152184435,1.18193805,46953.0,46949.0,1.42516406]
[1641152184836,1.18193805,46953.0,46949.0,1.4464566]
[1641152185036,1.29680968,46956.0,46951.0,1.117]
[1641152185237,1.29680968,46956.0,46955.0,0.18]
[1641152185539,1.29680968,46958.0,46955.0,0.181571]
[1641152185735,1.29680968,46958.0,46957.0,0.001]
[1641152186136,1.29680968,46958.0,46957.0,0.319883]
[1641152186337,1.29680968,46958.0,46957.0,1.35088705]
[1641152186536,1.29680968,46958.0,46957.0,1.54588705]
[1641152186936,1.29680968,46967.0,46957.0,2.66288705]
[1641152187136,1.28580968,46967.0,46965.0,0.18]
[1641152187339,1.28580968,46967.0,46966.0,0.001]
[1641152187537,1.28580968,46967.0,46966.0,0.37998161]
[1641152187938,0.09078448,46969.0,46966.0,0.37998161]
[1641152188138,1.41110522,46970.0,46966.0,0.37998161]
[1641152188139,0.0001,46970.0,46968.0,0.181]
[1641152188338,0.0001,46970.0,46969.0,0.001]
[1641152188539,0.0001,46970.0,46969.0,0.46202067]
[1641152188840,0.0001,46970.0,46969.0,0.14133567]
[1641152189540,0.0001,46970.0,46969.0,0.81127863]
[1641152190540,0.1801,46970.0,46969.0,1.60932951]
[1641152191340,0.0001,46970.0,46969.0,0.93938655]
[1641152191540,0.0001,46970.0,46969.0,0.33433567]
[1641152191840,0.0001,46970.0,46969.0,0.14033567]
[1641152192440,0.0001,46970.0,46969.0,0.33133567]
[1641152193741,0.0001,46970.0,46969.0,0.14033567]
[1641152194141,1.31379787,46970.0,46969.0,1.51106714]
[1641152194545,1.31379787,46970.0,46969.0,1.70206714]
[1641152195743,1.31379787,46970.0,46969.0,0.74538655]
[1641152196144,0.0001,46970.0,46969.0,0.14033567]
[1641152196643,0.0001,46970.0,46969.0,0.43723096]
[1641152196845,0.0001,46970.0,46969.0,0.75574296]
[1641152197844,0.0001,46970.0,46969.0,0.24723096]
[1641152198448,0.0001,46970.0,46969.0,0.43923096]
[1641152199149,0.0001,46970.0,46969.0,0.93978196]
[1641152199548,0.0001,46970.0,46969.0,0.95187987]
[1641152199746,0.0001,46970.0,46969.0,0.75987987]
[1641152200547,0.0001,46970.0,46969.0,0.95187987]
[1641152201046,0.0001,46970.0,46969.0,0.93978196]
[1641152201247,0.0001,46970.0,46969.0,0.95187942]
[1641152201847,0.0001,46970.0,46969.0,0.75987942]
[1641152202448,0.0001,46970.0,46969.0,0.95187942]
[1641152202850,0.0001,46980.0,46971.0,0.35836879]
[1641152203048,0.0001,46980.0,46976.0,0.001]
[1641152203249,0.0001,46980.0,46979.0,0.001]
[1641152204551,0.0001,46980.0,46979.0,0.193]
[1641152205954,0.0001,46980.0,46979.0,0.001]
[1641152206154,0.14033567,46984.0,46981.0,0.23015305]
[1641152206355,0.14033567,46984.0,46981.0,0.25143489]
[1641152206553,0.14033567,46984.0,46981.0,0.02128184]
[1641152206754,0.18,46983.0,46979.0,0.193]
[1641152207058,0.18,46980.0,46979.0,0.193]
[1641152207254,0.18,46980.0,46979.0,0.194]
[1641152207456,0.14033567,46984.0,46979.0,0.194]
[1641152207755,0.14033567,46984.0,46977.0,0.16161927]
[1641152207955,0.32033567,46984.0,46977.0,0.16161927]
[1641152208254,0.14033567,46984.0,46977.0,0.16161927]
[1641152208456,0.14033567,46984.0,46977.0,0.34961927]
[1641152209860,0.14033567,46984.0,46977.0,0.16161927]
[1641152210058,0.18,46979.0,46977.0,0.16161927]
[1641152210257,0.18,46979.0,46977.0,0.14033567]
[1641152210459,0.18,46979.0,46977.0,0.33333567]
[1641152210860,0.06,46978.0,46977.0,0.33333567]
[1641152211062,0.18,46978.0,46977.0,0.33333567]
[1641152211962,0.18,46978.0,46977.0,0.14033567]
[1641152212563,0.18,46978.0,46977.0,0.32733567]
[1641152213464,0.06,46978.0,46977.0,0.32733567]
[1641152213764,0.009794,46982.0,46977.0,0.14033567]
[1641152214465,0.009794,46982.0,46977.0,0.32333567]
[1641152215564,0.189794,46982.0,46977.0,0.32333567]
[1641152215963,0.189794,46982.0,46977.0,0.14033567]
[1641152216564,0.009794,46982.0,46977.0,0.32433567]
[1641152216965,0.189794,46982.0,46977.0,0.32433567]
[1641152217368,0.14033567,46984.0,46977.0,0.39711567]
[1641152217563,0.18,46979.0,46977.0,0.39711567]
[1641152217963,0.18,46979.0,46977.0,0.21311567]
[1641152218464,0.18,46983.0,46977.0,0.21311567]
[1641152218665,1.31369787,46980.0,46978.0,0.73481922]
[1641152219064,0.18,46979.0,46978.0,0.73481922]
[1641152219465,1.31369787,46980.0,46978.0,0.73481922]
[1641152220667,1.31369787,46979.0,46978.0,1.53077149]
[1641152221067,1.31369787,46979.0,46978.0,0.79595227]
[1641152221466,0.18,46979.0,46978.0,0.79595227]
[1641152221666,0.18,46979.0,46978.0,0.191]
[1641152221866,0.18,46979.0,46977.0,0.14033567]
[1641152222567,0.18,46979.0,46977.0,0.33333567]
[1641152222771,0.18,46978.0,46977.0,0.33333567]
[1641152223069,1.19315606,46980.0,46977.0,0.33333567]
[1641152223268,0.18,46978.0,46977.0,0.33333567]
[1641152223871,1.01523718,46978.0,46977.0,0.14033567]
[1641152224273,0.18,46978.0,46977.0,0.14033567]
[1641152224675,0.18,46978.0,46977.0,0.33333567]
[1641152225474,0.83523718,46978.0,46977.0,0.33333567]
[1641152225874,0.83523718,46978.0,46977.0,0.14033567]
[1641152226575,0.83523718,46978.0,46977.0,0.33333567]
[1641152226977,0.83523718,46979.0,46977.0,0.33333567]
[1641152227180,0.18,46978.0,46977.0,0.33333567]
[1641152227582,0.83523718,46979.0,46977.0,0.33333567]
[1641152227981,0.83523718,46979.0,46977.0,0.14033567]
[1641152228481,0.59693823,46978.0,46977.0,0.14033567]
[1641152228681,0.59693823,46978.0,46977.0,0.33333567]
[1641152229886,0.59693823,46978.0,46977.0,0.14033567]
[1641152230083,0.95520756,46978.0,46977.0,0.14033567]
[1641152230283,0.35826933,46978.0,46977.0,0.14033567]
[1641152230682,0.35826933,46978.0,46977.0,0.33233567]
[1641152230882,0.59693823,46979.0,46977.0,0.33233567]
[1641152231683,0.18,46978.0,46977.0,0.33233567]
[1641152231883,0.18,46978.0,46977.0,0.14033567]
[1641152232589,0.18,46978.0,46977.0,0.33233567]
[1641152233086,0.18,46978.0,46977.0,0.192]
[1641152233296,0.18,46978.0,46977.0,0.193]
[1641152233496,0.83523718,46979.0,46977.0,0.192]
[1641152233698,0.83523718,46979.0,46977.0,0.61773856]
[1641152233895,0.83523718,46979.0,46977.0,0.42573856]
[1641152234098,0.83523718,46979.0,46978.0,0.42572315]
[1641152234296,0.59845272,46979.0,46978.0,0.42572315]
[1641152234495,0.77845272,46979.0,46978.0,0.42572315]
[1641152234695,0.77845272,46979.0,46978.0,0.61972315]
[1641152234896,0.59845272,46979.0,46978.0,0.61972315]
[1641152235098,0.77845272,46979.0,46978.0,0.62072315]
[1641152235296,0.18,46979.0,46978.0,0.62072315]
[1641152235495,0.59845272,46980.0,46978.0,0.62072315]
[1641152235696,0.59845272,46980.0,46979.0,0.001]
[1641152236097,0.59845272,46980.0,46979.0,0.320035]
[1641152236299,0.59845272,46980.0,46979.0,0.34131786]
[1641152236497,0.59845272,46981.0,46979.0,0.41110519]
[1641152236696,0.59845272,46981.0,46979.0,0.60410519]
[1641152236898,0.59845272,46981.0,46980.0,0.001]
[1641152237298,0.59845272,46981.0,46980.0,0.3206]
[1641152237700,0.59845272,46981.0,46980.0,0.45993567]
[1641152238397,0.59845272,46983.0,46980.0,0.46093567]
[1641152238597,0.59845272,46983.0,46980.0,0.65393567]
[1641152239197,0.59845272,46983.0,46980.0,0.33433567]
[1641152239997,0.59845272,46983.0,46980.0,0.14033567]
[1641152240502,0.59845272,46983.0,46982.0,0.26676051]
[1641152240899,0.83523718,46985.0,46982.0,0.26676051]
[1641152240900,0.59845272,46984.0,46982.0,0.58502651]
[1641152241298,0.59845272,46984.0,46982.0,0.66614651]
[1641152241498,0.14043567,46990.0,46982.0,0.66614651]
[1641152241701,1.31369787,46985.0,46983.0,1.58046652]
[1641152242099,1.31369787,46985.0,46984.0,0.319361]
[1641152242603,1.31369787,46985.0,46984.0,0.510361]
[1641152243001,1.07170659,46985.0,46984.0,0.53164111]
[1641152243201,1.07170659,46985.0,46984.0,2.11210763]
[1641152243401,1.07170659,46985.0,46984.0,2.12420211]
[1641152243800,1.07170659,46985.0,46984.0,1.93320211]
[1641152244000,0.09072823,46987.0,46984.0,1.08611783]
[1641152244202,0.0001,46990.0,46984.0,1.08611783]
[1641152244400,1.2053553,46986.0,46984.0,1.07402335]
[1641152244600,1.2053553,46986.0,46984.0,1.26702335]
[1641152245509,1.2053553,46987.0,46985.0,0.73338224]
[1641152245701,1.2053553,46987.0,46986.0,0.14033567]
[1641152245901,1.2053553,46987.0,46986.0,0.45622167]
[1641152246502,0.0001,46990.0,46986.0,0.45622167]
[1641152246702,0.0001,46990.0,46986.0,0.65022167]
[1641152248105,0.0001,46990.0,46986.0,0.45622167]
[1641152248303,0.0001,46990.0,46989.0,0.20127687]
[1641152248503,0.0001,46990.0,46989.0,0.02127687]
[1641152248705,0.0001,46990.0,46989.0,0.501319]
[1641152248904,0.0001,46990.0,46989.0,0.52259417]
[1641152249107,0.0001,46990.0,46989.0,0.62451818]
[1641152249305,0.0001,46990.0,46989.0,0.62551818]
[1641152249705,0.0001,46990.0,46989.0,0.76585385]
[1641152249907,0.0001,46990.0,46989.0,0.58485385]
[1641152250307,0.0001,46990.0,46989.0,0.76485385]
[1641152250505,0.0001,46990.0,46989.0,0.67502323]
[1641152250708,0.0001,46990.0,46989.0,0.86902323]
[1641152250909,0.0001,46990.0,46989.0,0.95756751]
[1641152251806,0.0001,46990.0,46989.0,0.76356751]
[1641152252207,0.0001,46990.0,46989.0,0.76256751]
[1641152252407,0.0001,46990.0,46989.0,0.58256751]
[1641152252607,0.0001,46990.0,46989.0,0.77656751]
[1641152253211,0.0001,46990.0,46989.0,0.76547412]
[1641152253612,0.0001,46990.0,46989.0,0.77756749]
[1641152254012,0.0001,46990.0,46989.0,0.58356749]
[1641152254612,0.0001,46990.0,46989.0,0.77756749]
[1641152256114,0.0001,46990.0,46989.0,0.58356749]
[1641152256717,0.0001,46990.0,46989.0,0.77756749]
[1641152256914,0.0001,46990.0,46989.0,0.63723182]
[1641152257915,0.0001,46990.0,46989.0,0.72390316]
[1641152258720,0.0001,46990.0,46989.0,0.91790316]
[1641152259119,0.0001,46990.0,46989.0,0.90580979]
[1641152260120,0.0001,46990.0,46989.0,0.91790316]
[1641152260320,0.0001,46990.0,46989.0,0.81826551]
[1641152260522,0.0001,46990.0,46989.0,0.62426551]
[1641152260720,0.0001,46990.0,46989.0,0.83035884]
[1641152262222,0.0001,46990.0,46989.0,0.63635884]
[1641152262722,0.0001,46990.0,46989.0,0.83035884]
[1641152263823,0.0001,46990.0,46989.0,0.63635884]
[1641152264626,0.0001,46990.0,46989.0,0.83035884]
[1641152265825,0.60260374,46990.0,46989.0,2.8922534]
[1641152266030,0.60260374,46990.0,46989.0,2.6982534]
[1641152266627,0.60260374,46990.0,46989.0,2.8922534]
[1641152267927,0.60260374,46990.0,46989.0,2.6982534]
[1641152268226,0.0001,46990.0,46989.0,2.6982534]
[1641152268525,0.0001,46990.0,46989.0,1.37059585]
[1641152268728,0.0001,46990.0,46989.0,1.56459585]
[1641152269827,0.0001,46990.0,46989.0,2.40402138]
[1641152270027,0.0001,46990.0,46989.0,2.21002138]
[1641152270427,0.06405,46990.0,46989.0,1.88770238]
[1641152270628,0.06405,46990.0,46989.0,1.24127685]
[1641152271435,0.06405,46990.0,46989.0,1.22918352]
[1641152271932,0.06405,46990.0,46989.0,1.63707662]
[1641152272134,0.06405,46990.0,46989.0,1.49674095]
[1641152272630,0.06405,46990.0,46989.0,1.68874095]
[1641152272831,0.06405,46990.0,46989.0,0.95450394]
[1641152273032,0.06405,46990.0,46989.0,1.315692]
[1641152273331,0.06405,46990.0,46989.0,0.7147989]
[1641152273530,0.06405,46990.0,46989.0,0.69352373]
[1641152274037,0.06405,46990.0,46989.0,0.50152373]
[1641152274335,0.06405,46990.0,46989.0,0.14033567]
[1641152274546,0.66815563,46990.0,46989.0,0.33333567]
[1641152275247,0.06405,46990.0,46989.0,0.33333567]
[1641152275447,0.99961062,46990.0,46989.0,0.33333567]
[1641152276048,1.17961062,46990.0,46989.0,0.33333567]
[1641152276247,0.15476563,46990.0,46989.0,0.33333567]
[1641152276650,0.15476563,46990.0,46989.0,0.52533567]
[1641152277749,0.33476563,46990.0,46989.0,0.52533567]
[1641152277948,0.15476563,46990.0,46989.0,0.14033567]
[1641152278449,0.33476563,46990.0,46989.0,0.14033567]
[1641152278648,0.33476563,46990.0,46989.0,0.33233567]
[1641152278848,1.17961062,46990.0,46989.0,0.33233567]
[1641152279850,1.17961062,46990.0,46989.0,0.00563567]
[1641152280051,1.17961062,46990.0,46987.0,0.36118806]
[1641152280251,1.17961062,46990.0,46985.0,0.6008931]
[1641152280451,0.18,46986.0,46985.0,0.6008931]
[1641152280852,0.18,46986.0,46983.0,0.6008931]
[1641152282653,0.93923021,46986.0,46983.0,0.7828931]
[1641152283350,0.93923021,46986.0,46985.0,0.001]
[1641152284150,0.78423021,46986.0,46985.0,0.001]
[1641152284551,0.78423021,46986.0,46983.0,0.6008931]
[1641152284752,0.94323021,46986.0,46985.0,0.183]
[1641152285653,0.94323021,46986.0,46985.0,0.184]
[1641152286054,0.78423021,46986.0,46985.0,0.001]
[1641152286755,0.76623021,46986.0,46985.0,0.185]
[1641152287058,0.94623021,46986.0,46985.0,0.185]
[1641152287254,0.76623021,46986.0,46985.0,0.185]
[1641152287454,0.94623021,46986.0,46985.0,0.185]
[1641152287956,0.18,46986.0,46985.0,0.001]
[1641152288856,0.342,46986.0,46985.0,0.185]
[1641152289857,0.162,46986.0,46985.0,0.185]
[1641152290056,0.18,46986.0,46985.0,0.001]
[1641152290456,0.74456588,46987.0,46985.0,0.001]
[1641152290658,0.155,46986.0,46985.0,0.54286152]
[1641152290857,0.155,46986.0,46985.0,0.54386152]
[1641152291259,0.155,46986.0,46985.0,0.55595603]
[1641152292061,0.14033567,46987.0,46985.0,0.37395603]
[1641152292257,0.14033567,46987.0,46985.0,0.37295603]
[1641152292457,0.14033567,46987.0,46985.0,0.36086152]
[1641152292658,0.30733567,46987.0,46985.0,0.54486152]
[1641152293858,0.14033567,46987.0,46985.0,0.36086152]
[1641152294664,0.30733567,46987.0,46985.0,0.54486152]
[1641152296062,0.14033567,46987.0,46985.0,0.36086152]
[1641152296661,0.30733567,46987.0,46985.0,0.54486152]
[1641152297866,0.48733567,46987.0,46985.0,0.54486152]
[1641152298668,0.8427854,46987.0,46985.0,0.176]
[1641152300067,0.8427854,46987.0,46984.0,0.36086152]
[1641152300274,0.6827854,46987.0,46984.0,0.36086152]
[1641152300668,0.8457854,46987.0,46984.0,0.53886152]
[1641152301172,0.36244973,46986.0,46984.0,0.53886152]
[1641152301371,0.36244973,46986.0,46985.0,0.001]
[1641152301570,0.54244973,46986.0,46985.0,0.001]
[1641152301771,0.18,46986.0,46985.0,0.001]
[1641152301970,0.5027854,46987.0,46985.0,0.001]
[1641152302170,0.5027854,46987.0,46985.0,0.05985]
[1641152302369,0.5027854,46987.0,46986.0,0.001]
[1641152302570,0.36244973,46987.0,46986.0,0.001]
[1641152302772,0.60423021,46988.0,46986.0,0.001]
[1641152302969,0.60423021,46988.0,46985.0,0.24785]
[1641152303671,0.60433021,46990.0,46985.0,0.60871152]
[1641152304071,0.60433021,46990.0,46985.0,0.42071152]
[1641152304474,0.60423021,46989.0,46985.0,0.42071152]
[1641152304671,0.18,46986.0,46985.0,0.59971152]
[1641152304871,0.18,46986.0,46985.0,0.60071152]
[1641152305473,0.60423021,46989.0,46985.0,0.23985]
[1641152305673,0.18,46986.0,46985.0,0.23885]
[1641152305872,0.18,46986.0,46985.0,0.23985]
[1641152306073,0.18,46986.0,46985.0,0.06085]
[1641152306272,0.18,46986.0,46985.0,0.001]
[1641152306472,0.60423021,46989.0,46985.0,0.001]
[1641152306672,0.60423021,46989.0,46985.0,0.19]
[1641152307783,0.60423021,46989.0,46985.0,0.26198]
[1641152307980,0.60423021,46989.0,46985.0,0.07198]
[1641152308379,0.60423021,46989.0,46988.0,0.001]
[1641152308879,0.60433021,46990.0,46988.0,0.001]
[1641152309078,0.60433021,46990.0,46989.0,0.001]
[1641152309780,0.0001,46990.0,46989.0,0.001]
[1641152310284,0.1801,46990.0,46989.0,0.001]
[1641152310481,0.0001,46990.0,46989.0,0.001]
[1641152310680,0.3271,46990.0,46989.0,0.188]
[1641152311082,0.1471,46990.0,46989.0,0.188]
[1641152312082,0.0001,46990.0,46989.0,0.001]
[1641152312684,0.1441,46990.0,46989.0,0.189]
[1641152313483,0.1441,46990.0,46989.0,1.49951236]
[1641152314084,0.0001,46990.0,46989.0,1.32360563]
[1641152314286,0.0001,46990.0,46989.0,0.72271253]
[1641152314686,0.0001,46990.0,46989.0,0.91171253]
[1641152316086,0.0001,46990.0,46989.0,0.72271253]
[1641152316288,0.0001,46990.0,46989.0,1.56076131]
[1641152316688,0.1461,46990.0,46989.0,1.74676131]
[1641152317387,0.1461,46990.0,46989.0,0.90871253]
[1641152318088,0.0001,46990.0,46989.0,0.72271253]
[1641152318290,0.3626645,46990.0,46989.0,0.72271253]
[1641152318687,0.5056645,46990.0,46989.0,0.90871253]
[1641152318987,0.5056645,46990.0,46989.0,1.50745231]
[1641152319187,0.5656645,46990.0,46989.0,1.50745231]
[1641152319588,0.5656645,46990.0,46989.0,1.49535904]
[1641152320088,0.4226645,46990.0,46989.0,1.30935904]
[1641152320492,0.0601,46990.0,46989.0,0.59973978]
[1641152320797,0.33381668,46990.0,46989.0,0.53946651]
[1641152321290,1.17866167,46990.0,46989.0,0.53946651]
[1641152321791,1.11866167,46990.0,46989.0,0.53946651]
[1641152322192,0.93566167,46990.0,46989.0,0.36046651]
[1641152322393,1.11566167,46990.0,46989.0,0.36046651]
[1641152322591,0.93566167,46990.0,46989.0,0.36046651]
[1641152322791,1.12066167,46990.0,46989.0,0.54146651]
[1641152323092,1.02994499,46990.0,46989.0,0.182]
[1641152323791,1.12066167,46990.0,46989.0,0.182]
[1641152324192,0.93566167,46990.0,46989.0,0.001]
[1641152324599,0.84494499,46990.0,46989.0,0.001]
[1641152324794,0.1471,46990.0,46989.0,1.4945021]
[1641152325697,0.50967209,46990.0,46989.0,1.4945021]
[1641152326196,0.36267209,46990.0,46989.0,1.3065021]
[1641152326398,0.36267209,46990.0,46989.0,0.70776232]
[1641152326797,0.49967209,46990.0,46989.0,0.90885631]
[1641152327000,0.49967209,46990.0,46989.0,0.89676232]
[1641152327398,0.1371,46990.0,46989.0,1.7348111]
[1641152328100,0.0001,46990.0,46989.0,1.5458111]
[1641152328300,0.36267209,46990.0,46989.0,0.70776232]
[1641152328698,0.36267209,46990.0,46989.0,0.89676232]
[1641152328899,0.50667209,46990.0,46989.0,0.89676232]
[1641152329099,0.50667209,46990.0,46989.0,1.49573084]
[1641152330099,0.0001,46990.0,46989.0,1.30673084]
[1641152330702,0.0001,46990.0,46989.0,0.59996852]
[1641152330913,0.25581786,46990.0,46989.0,0.54358573]
[1641152331715,0.76940592,46990.0,46989.0,0.54358573]
[1641152332316,0.60440592,46990.0,46989.0,0.36058573]
[1641152332819,0.76540592,46990.0,46989.0,0.54458573]
[1641152333019,0.1611,46990.0,46989.0,0.185]
[1641152333418,1.09666285,46990.0,46989.0,0.185]
[1641152333918,0.25181786,46990.0,46989.0,0.185]
[1641152334117,0.09081786,46990.0,46989.0,0.36049147]
[1641152334918,0.24781786,46990.0,46989.0,0.185]
[1641152336220,0.09081786,46990.0,46989.0,0.001]
[1641152336720,0.09081786,46990.0,46989.0,1.54625883]
[1641152336919,0.24881786,46990.0,46989.0,1.72925883]
[1641152337319,0.1581,46990.0,46989.0,1.02204878]
[1641152338119,0.0001,46990.0,46989.0,0.83904878]
[1641152338920,0.25381786,46990.0,46989.0,1.73025883]
[1641152339321,0.43381786,46990.0,46989.0,1.73025883]
[1641152339721,1.64315704,46990.0,46989.0,1.73025883]
[1641152340224,1.48015704,46990.0,46989.0,1.54625883]
[1641152340623,0.27081786,46990.0,46989.0,1.54625883]
[1641152340822,0.43081786,46990.0,46989.0,1.73025883]
[1641152341422,0.3401,46990.0,46989.0,0.185]
[1641152342124,0.1801,46990.0,46989.0,0.001]
[1641152342323,0.27081736,46990.0,46989.0,1.54729844]
[1641152342524,1.48016468,46990.0,46989.0,1.54729844]
[1641152342926,1.36244732,46990.0,46989.0,1.73229844]
[1641152343828,1.36244732,46990.0,46989.0,0.89324291]
[1641152344027,1.45316468,46990.0,46989.0,0.89324291]
[1641152344328,1.63316468,46990.0,46989.0,0.89324291]
[1641152344726,1.48016468,46990.0,46989.0,0.70824291]
[1641152344926,1.64116468,46990.0,46989.0,0.89224291]
[1641152345132,0.43181736,46990.0,46989.0,0.89224291]
[1641152345430,0.25181736,46990.0,46989.0,0.89224291]
[1641152346132,0.25181736,46990.0,46989.0,1.54649368]
[1641152346334,0.09081736,46990.0,46989.0,1.54649368]
[1641152346831,0.25781736,46990.0,46989.0,1.73049368]
[1641152347031,1.46715732,46990.0,46989.0,1.73049368]
[1641152347631,1.46715732,46990.0,46989.0,0.89224291]
[1641152348129,1.46715732,46990.0,46989.0,0.70824291]
[1641152348330,0.09081736,46990.0,46989.0,0.70824291]
[1641152349032,0.25981736,46990.0,46989.0,0.89224291]
[1641152349231,0.1691,46990.0,46989.0,0.89224291]
[1641152349634,0.1691,46990.0,46989.0,0.90433671]
[1641152349833,1.10631293,46990.0,46989.0,2.10298747]
[1641152350234,0.93731293,46990.0,46989.0,1.91898747]
[1641152350833,1.09531293,46990.0,46989.0,2.10698747]
[1641152351033,1.00459557,46990.0,46989.0,2.10698747]
[1641152351333,0.1581,46990.0,46989.0,0.90833671]
[1641152352133,0.1581,46990.0,46989.0,0.72033671]
[1641152352335,0.60471245,46990.0,46989.0,0.72033671]
[1641152352835,0.76471245,46990.0,46989.0,0.90833671]
[1641152354237,0.60471245,46990.0,46989.0,0.72033671]
[1641152354835,0.76071245,46990.0,46989.0,0.90833671]
[1641152356136,0.0001,46990.0,46989.0,1.91719341]
[1641152356936,0.1621,46990.0,46989.0,2.10419341]
[1641152357137,0.76671245,46990.0,46989.0,2.10419341]
[1641152358237,0.96734441,46990.0,46989.0,1.91719341]
[1641152358437,0.36273196,46990.0,46989.0,0.72033671]
[1641152358838,0.52173196,46990.0,46989.0,0.90433671]
[1641152359437,0.52173196,46990.0,46989.0,0.89224291]
[1641152359636,0.70173196,46990.0,46989.0,0.89224291]
[1641152360038,0.3391,46990.0,46989.0,1.72912891]
[1641152360238,0.78471245,46990.0,46989.0,1.54512891]
[1641152360939,0.96271245,46990.0,46989.0,1.71612891]
[1641152361138,1.29531227,46990.0,46989.0,0.87924291]
[1641152361337,1.29531227,46990.0,46989.0,1.47715177]
[1641152362240,0.2708167,46990.0,46989.0,0.59890886]
[1641152362441,0.2708167,46990.0,46989.0,0.95732656]
[1641152362640,1.48015666,46990.0,46989.0,0.3594177]
[1641152362841,1.65115666,46990.0,46989.0,0.5224177]
[1641152363946,1.65115666,46990.0,46989.0,0.164]
[1641152364146,1.48015666,46990.0,46989.0,0.001]
[1641152364947,1.64515666,46990.0,46989.0,0.156]
[1641152366248,1.48015666,46990.0,46989.0,0.001]
[1641152366449,0.2708167,46990.0,46989.0,0.3594177]
[1641152366852,0.4328167,46990.0,46989.0,0.5114177]
[1641152368249,0.2528167,46990.0,46989.0,0.5114177]
[1641152368950,0.2538167,46990.0,46989.0,0.5124177]
[1641152369150,0.2538167,46990.0,46989.0,0.154]
[1641152370253,0.0908167,46990.0,46989.0,0.001]
[1641152370852,0.2458167,46990.0,46989.0,0.145]
[1641152371255,0.2458167,46990.0,46989.0,0.5034177]
[1641152371852,0.2458167,46990.0,46989.0,0.145]
[1641152372068,0.4258167,46990.0,46989.0,0.145]
[1641152372267,0.2708167,46990.0,46989.0,0.001]
[1641152372867,0.48710272,46990.0,46989.0,0.001]
[1641152373669,1.69644268,46990.0,46989.0,0.001]
[1641152374069,0.48710272,46990.0,46989.0,0.001]
[1641152374270,0.29210272,46990.0,46989.0,0.001]
[1641152374871,0.48510272,46990.0,46989.0,0.001]
[1641152375270,1.60210272,46990.0,46986.0,0.3584177]
[1641152375474,1.60210272,46990.0,46984.0,0.59790886]
[1641152375475,1.297,46987.0,46984.0,0.59790886]
[1641152375872,0.02129005,46985.0,46984.0,0.59790886]
[1641152376073,0.02129005,46985.0,46974.0,1.43838091]
[1641152376273,0.18,46978.0,46970.0,2.32840832]
[1641152376473,0.25107,46978.0,46970.0,2.32840832]
[1641152376673,1.50840567,46978.0,46970.0,1.43838091]
[1641152376873,1.69840567,46978.0,46977.0,0.145]
[1641152377073,1.69840567,46978.0,46977.0,1.33484253]
[1641152377276,1.71969764,46978.0,46977.0,1.33484253]
[1641152377474,1.72949164,46978.0,46977.0,1.33484253]
[1641152377875,1.54949164,46978.0,46977.0,0.145]
[1641152378075,1.82020834,46978.0,46977.0,0.69085413]
[1641152378376,2.96049039,46978.0,46977.0,0.54585413]
[1641152378974,3.15049039,46978.0,46977.0,0.54585413]
[1641152379176,3.05977369,46978.0,46970.0,1.31851583]
[1641152379374,1.297,46971.0,46970.0,1.31851583]
[1641152379574,1.117,46971.0,46970.0,1.31851583]
[1641152379778,1.117,46971.0,46953.0,0.18]
[1641152379779,1.297,46971.0,46955.0,1.31851583]
[1641152379976,0.18,46966.0,46955.0,1.31851583]
[1641152380176,0.18,46966.0,46965.0,0.001]
[1641152380976,0.176,46966.0,46965.0,0.001]
[1641152381178,0.356,46966.0,46965.0,0.001]
[1641152382180,0.18,46966.0,46965.0,0.001]
[1641152382382,0.009794,46967.0,46965.0,0.001]
[1641152382580,0.009794,46967.0,46956.0,0.14033567]
[1641152382984,0.194794,46967.0,46953.0,0.18]
[1641152383482,0.14033567,46965.0,46955.0,0.14033567]
[1641152383683,0.18,46964.0,46960.0,0.001]
[1641152383881,0.18,46964.0,46963.0,0.001]
[1641152384081,0.18,46964.0,46955.0,0.14033567]
[1641152384481,0.14033567,46965.0,46955.0,0.14033567]
[1641152385982,0.14033567,46965.0,46957.0,0.3576693]
[1641152388586,0.32033567,46965.0,46957.0,0.3576693]
[1641152390188,0.18,46962.0,46957.0,0.3576693]
[1641152390389,0.18,46958.0,46957.0,0.3576693]
[1641152390589,1.3183009,46958.0,46957.0,0.3576693]
[1641152390989,1.5093009,46958.0,46957.0,0.3576693]
[1641152391590,1.5093009,46958.0,46952.0,1.5499893]
[1641152391793,0.18,46953.0,46952.0,0.3576693]
[1641152392793,0.18,46953.0,46948.0,0.3576693]
[1641152392993,0.02130403,46950.0,46948.0,0.3576693]
[1641152393193,0.02130403,46950.0,46949.0,0.001]
[1641152393793,0.1616397,46950.0,46949.0,0.001]
[1641152394295,0.1616397,46950.0,46942.0,0.3576693]
[1641152394895,0.3346397,46950.0,46942.0,0.3576693]
[1641152395097,0.3346397,46950.0,46943.0,0.01210262]
[1641152396295,0.1616397,46950.0,46943.0,0.01210262]
[1641152397097,0.3396397,46950.0,46942.0,0.01210262]
[1641152397297,0.3396397,46950.0,46944.0,0.01210262]
[1641152397700,0.3396397,46950.0,46942.0,0.01210262]
[1641152397897,0.3396397,46950.0,46945.0,0.01210262]
[1641152398297,0.3396397,46950.0,46943.0,0.01210262]
[1641152398498,0.3396397,46950.0,46946.0,0.01210262]
[1641152398700,0.3396397,46950.0,46944.0,0.01210262]
[1641152398898,0.1616397,46950.0,46944.0,0.01210262]
[1641152399097,0.3426397,46950.0,46947.0,0.01210262]
[1641152399297,0.3426397,46950.0,46945.0,0.01210262]